bitfinex/quotes_SOLUSD_20250823
["timestamp","ask_amount","ask_price","bid_price","bid_amount"]
[1755924596669,58.73559401,203.97,203.96,23.11837188]
[1755924596864,45.14,203.97,203.95,23.11837188]
[1755924597079,13.59559401,203.96,203.87,0.03]
[1755924597249,45.14,203.97,203.94,23.11837188]
[1755924597446,45.14,203.97,203.91,0.68]
[1755924597642,45.14,203.97,203.94,23.11837188]
[1755924598073,13.59559401,204.02,203.95,0.68]
[1755924598278,36.71396589,204.02,203.92,0.68]
[1755924598439,13.59559401,204.0,203.95,23.11837188]
[1755924598643,13.59559401,204.0,203.96,23.11837188]
[1755924598840,26.0,204.12,203.99,23.11837188]
[1755924599062,58.73559401,204.03,203.99,23.11837188]
[1755924599267,0.06,204.06,204.05,26.0]
[1755924599443,0.06,204.06,203.98,0.68]
[1755924599646,45.14,204.05,203.95,0.03]
[1755924599851,36.71396589,204.01,203.95,0.03]
[1755924600059,13.59559401,203.99,203.95,0.03]
[1755924600370,45.22,203.98,203.95,23.14837188]
[1755924600557,45.22,203.98,203.96,23.11837188]
[1755924600760,45.22,203.98,203.95,0.03]
[1755924600973,45.26,203.97,203.95,23.14837188]
[1755924601156,0.28432314,204.05,203.95,23.14837188]
[1755924601157,0.66,204.19,203.97,10.0]
[1755924601374,0.66,204.19,203.96,46.91674376]
[1755924601375,0.66,204.19,204.03,26.0]
[1755924601553,0.66,204.19,204.08,23.11837188]
[1755924601751,45.78,204.1,204.08,23.11837188]
[1755924601953,45.78,204.1,204.08,0.68]
[1755924602276,45.78,204.1,204.08,23.79837188]
[1755924602585,45.76,204.11,204.08,23.79837188]
[1755924602884,45.72,204.14,204.08,0.68]
[1755924603176,45.72,204.13,204.11,26.0]
[1755924603479,45.74,204.12,204.08,0.68]
[1755924603647,45.74,204.12,204.09,0.68]
[1755924603851,45.74,204.12,204.1,0.68]
[1755924604075,0.06,204.27,204.11,23.79837188]
[1755924604076,0.72,204.27,204.11,23.79837188]
[1755924604244,0.06,204.27,204.26,23.11837188]
[1755924604592,45.76,204.27,204.26,26.0]
[1755924604744,45.76,204.27,204.26,23.11837188]
[1755924605263,45.76,204.27,204.24,0.68]
[1755924605494,0.06,204.27,204.26,23.11837188]
[1755924605783,0.06,204.27,204.26,23.79837188]
[1755924606077,0.06,204.3,204.29,26.0]
[1755924606250,0.06,204.3,204.2,9.78337188]
[1755924606451,0.06,204.3,204.29,23.11837188]
[1755924606951,0.72,204.3,204.26,23.11837188]
[1755924607273,0.66,204.29,204.27,23.11837188]
[1755924607886,0.06,204.3,204.28,23.11837188]
[1755924608089,0.06,204.32,204.2,23.40269502]
[1755924608090,0.06,204.32,204.31,23.11837188]
[1755924608390,0.06,204.32,204.23,26.0]
[1755924608594,0.06,204.32,204.31,23.11837188]
[1755924608970,14.31559401,204.32,204.27,23.11837188]
[1755924609172,36.71396589,204.28,204.14,0.49]
[1755924609384,45.82,204.27,204.14,0.49]
[1755924609671,0.66,204.29,204.24,23.11837188]
[1755924609879,45.8,204.28,204.23,26.0]
[1755924610180,45.8,204.28,204.16,10.0]
[1755924610181,45.8,204.28,204.27,23.11837188]
[1755924610378,13.59559401,204.31,204.27,23.11837188]
[1755924610580,23.11837188,204.28,204.08,10.0]
[1755924610784,13.59559401,204.24,204.12,0.49]
[1755924611098,46.44,204.23,204.19,23.11837188]
[1755924611298,46.44,204.23,204.09,10.0]
[1755924611299,0.66,204.22,204.17,23.11837188]
[1755924611602,0.66,204.22,204.16,23.11837188]
[1755924611603,0.66,204.21,204.16,23.11837188]
[1755924611806,45.72,204.2,204.04,10.0]
[1755924612099,45.76,204.19,204.17,23.11837188]
[1755924612297,45.76,204.19,204.09,0.49]
[1755924612298,0.66,204.21,204.14,23.11837188]
[1755924612501,45.76,204.2,204.08,0.49]
[1755924612704,45.76,204.2,204.15,23.11837188]
[1755924613000,0.66,204.19,204.15,23.11837188]
[1755924613201,0.66,204.18,204.15,23.11837188]
[1755924613700,0.66,204.17,204.14,23.11837188]
[1755924614272,0.66,204.16,204.12,49.11837188]
[1755924614484,0.66,204.15,204.11,23.11837188]
[1755924615005,0.66,204.19,204.14,23.11837188]
[1755924615198,13.59559401,204.2,204.16,23.11837188]
[1755924615397,0.66,204.25,204.19,23.11837188]
[1755924615577,36.71396589,204.22,204.16,23.11837188]
[1755924615776,0.66,204.21,204.16,23.11837188]
[1755924616190,0.66,204.21,204.18,23.11837188]
[1755924616397,0.66,204.21,204.16,26.0]
[1755924616595,45.62,204.2,204.18,23.11837188]
[1755924616803,45.62,204.2,204.17,23.11837188]
[1755924617004,37.37396589,204.19,204.13,23.11837188]
[1755924617182,13.59559401,204.15,204.02,0.49]
[1755924617381,13.59559401,204.13,204.07,23.11837188]
[1755924617694,36.71396589,204.13,204.07,23.11837188]
[1755924618002,0.66,204.12,204.07,23.11837188]
[1755924618201,0.66,204.11,204.07,23.11837188]
[1755924618401,36.71396589,204.13,204.07,23.11837188]
[1755924618585,0.66,204.1,204.07,23.11837188]
[1755924619106,13.59559401,204.08,204.04,23.11837188]
[1755924619280,45.48,204.07,204.03,23.11837188]
[1755924619486,0.66,204.06,204.02,23.11837188]
[1755924620411,0.66,204.05,203.96,2.55809784]
[1755924620586,13.59559401,204.04,203.99,23.11837188]
[1755924620790,0.66,204.03,203.99,23.11837188]
[1755924621003,0.66,204.02,203.98,23.11837188]
[1755924621212,45.4,204.01,203.98,23.11837188]
[1755924621391,0.66,204.15,204.0,23.11837188]
[1755924621590,59.01559401,204.14,204.09,23.11837188]
[1755924621780,59.01559401,204.14,204.08,23.11837188]
[1755924621781,13.59559401,204.11,204.08,23.11837188]
[1755924622182,0.66,204.1,204.08,23.11837188]
[1755924622797,45.42,204.14,204.08,26.0]
[1755924623014,13.59559401,204.11,204.0,0.49]
[1755924623213,13.59559401,204.11,204.06,23.11837188]
[1755924623381,13.59559401,204.09,204.05,23.11837188]
[1755924623587,45.46,204.08,204.05,23.11837188]
[1755924624506,13.59559401,204.13,204.07,23.11837188]
[1755924624814,13.59559401,204.11,204.08,23.11837188]
[1755924625186,0.66,204.11,204.08,23.11837188]
[1755924625498,45.4,204.1,203.95,0.03]
[1755924625693,13.59559401,204.09,203.96,0.49]
[1755924625890,14.25559401,204.09,204.04,23.11837188]
[1755924626090,0.66,204.08,204.03,23.11837188]
[1755924626321,0.66,204.07,204.03,23.11837188]
[1755924626489,0.66,204.07,204.02,23.11837188]
[1755924626689,0.66,204.07,204.03,23.11837188]
[1755924626913,0.66,204.07,204.02,23.11837188]
[1755924627103,0.66,204.07,204.04,23.11837188]
[1755924627507,45.42,204.06,204.04,23.11837188]
[1755924627896,45.42,204.06,204.05,23.11837188]
[1755924628113,45.42,204.06,203.96,0.49]
[1755924628114,45.42,204.06,204.04,23.11837188]
[1755924628818,45.42,204.06,204.05,23.11837188]
[1755924629500,45.28,204.06,204.05,23.11837188]
[1755924632016,45.28,204.06,203.96,0.49]
[1755924632200,45.28,204.06,204.05,23.11837188]
[1755924632392,45.28,204.06,203.96,0.49]
[1755924632592,14.31559401,204.12,204.05,23.14837188]
[1755924632803,36.02,204.17,204.11,23.11837188]
[1755924633102,45.88,204.16,204.12,23.11837188]
[1755924633301,45.88,204.16,204.08,26.0]
[1755924633302,0.72,204.15,204.08,26.0]
[1755924633531,13.59559401,204.14,204.05,0.03]
[1755924633728,14.31559401,204.15,204.13,23.11837188]
[1755924633964,13.59559401,204.15,204.14,23.11837188]
[1755924634650,14.31559401,204.15,204.08,26.0]
[1755924634949,14.31559401,204.15,204.13,23.11837188]
[1755924635129,0.72,204.14,204.05,0.03]
[1755924635317,1.00432314,204.14,204.08,23.11837188]
[1755924635523,1.00432314,204.14,204.1,23.11837188]
[1755924635718,0.72,204.13,204.1,23.11837188]
[1755924635923,0.72,204.12,204.05,0.03]
[1755924636217,13.59559401,204.1,204.08,23.11837188]
[1755924636429,14.31559401,204.09,204.08,23.11837188]
[1755924636812,45.16,204.11,204.08,23.11837188]
[1755924637015,45.16,204.11,204.05,0.03]
[1755924637016,45.16,204.11,204.09,23.11837188]
[1755924637310,13.59559401,204.13,204.1,23.11837188]
[1755924637615,13.59559401,204.13,204.05,0.03]
[1755924637616,45.16,204.12,204.11,23.11837188]
[1755924638270,45.16,204.12,204.09,23.11837188]
[1755924638271,13.59559401,204.11,204.09,23.11837188]
[1755924638443,14.31559401,204.11,204.09,23.11837188]
[1755924638641,13.59559401,204.11,204.1,23.11837188]
[1755924638847,13.59559401,204.11,204.09,23.11837188]
[1755924638848,14.31559401,204.11,204.09,23.11837188]
[1755924639170,13.59559401,204.1,204.09,23.11837188]
[1755924639344,13.59559401,204.11,204.09,23.11837188]
[1755924639657,0.72,204.16,204.1,23.11837188]
[1755924639861,58.75559401,204.15,204.05,0.03]
[1755924640044,58.75559401,204.15,204.12,23.11837188]
[1755924640250,0.72,204.14,204.12,23.11837188]
[1755924640456,0.72,204.13,204.11,23.11837188]
[1755924640653,14.31559401,204.12,204.11,23.11837188]
[1755924640967,13.59559401,204.14,204.11,23.11837188]
[1755924641264,0.72,204.13,204.11,23.11837188]
[1755924641468,0.72,204.13,204.12,23.11837188]
[1755924641469,13.59559401,204.13,204.12,23.11837188]
[1755924642030,13.59559401,204.14,204.12,23.11837188]
[1755924642266,45.16,204.15,204.13,23.11837188]
[1755924642439,14.31559401,204.14,204.05,0.03]
[1755924642638,14.31559401,204.14,204.12,23.11837188]
[1755924642839,0.72,204.13,204.05,0.03]
[1755924643038,0.72,204.13,204.11,23.11837188]
[1755924643279,13.59559401,204.14,204.11,23.11837188]
[1755924643280,0.72,204.12,204.11,23.11837188]
[1755924643576,45.86,204.12,204.08,23.11837188]
[1755924643866,0.28432314,204.1,204.05,0.03]
[1755924644068,13.59559401,204.08,204.07,23.11837188]
[1755924644272,58.73559401,204.08,204.07,23.11837188]
[1755924644569,59.45559401,204.08,204.06,23.11837188]
[1755924644764,0.72,204.07,204.05,23.14837188]
[1755924644970,0.72,204.06,204.05,23.14837188]
[1755924645140,14.31559401,204.06,204.05,0.03]
[1755924645573,14.31559401,204.06,204.05,23.14837188]
[1755924645768,13.59559401,204.06,204.05,23.14837188]
[1755924646074,45.14,204.08,204.05,23.14837188]
[1755924646242,58.73559401,204.08,204.07,23.11837188]
[1755924646447,13.59559401,204.07,204.06,23.11837188]
[1755924646651,14.31559401,204.07,204.05,0.03]
[1755924646942,1.00432314,204.06,204.05,0.03]
[1755924648145,37.71828903,204.06,204.05,0.03]
[1755924649259,14.31559401,204.06,204.05,0.03]
[1755924649459,14.31559401,204.06,204.05,23.14837188]
[1755924649460,13.59559401,204.06,204.05,23.14837188]
[1755924649671,0.72,204.09,204.05,23.14837188]
[1755924649852,58.73559401,204.08,204.07,23.11837188]
[1755924650052,45.14,204.08,204.07,23.11837188]
[1755924650255,13.59559401,204.07,204.05,0.03]
[1755924650565,45.14,204.08,204.06,23.11837188]
[1755924650867,58.73559401,204.08,204.07,23.11837188]
[1755924651064,45.14,204.08,204.07,23.11837188]
[1755924651571,45.14,204.08,204.05,0.03]
[1755924651761,45.14,204.08,204.07,23.11837188]
[1755924653287,58.73559401,204.08,204.07,23.11837188]
[1755924653466,0.72,204.15,204.07,23.11837188]
[1755924653666,58.73559401,204.14,204.12,23.11837188]
[1755924653881,13.59559401,204.12,204.11,23.11837188]
[1755924654083,13.59559401,204.12,204.05,0.03]
[1755924654084,14.31559401,204.12,204.08,23.11837188]
[1755924654260,14.31559401,204.12,204.05,0.03]
[1755924654261,13.59559401,204.1,204.05,23.14837188]
[1755924654461,46.14432314,204.09,204.05,23.14837188]
[1755924654678,13.59559401,204.07,204.05,0.03]
[1755924655201,13.59559401,204.07,204.04,22.64837188]
[1755924655496,13.59559401,204.05,204.03,23.11837188]
[1755924655793,45.14,204.04,204.02,0.03]
[1755924655999,45.14,204.04,204.03,23.11837188]
[1755924656367,45.14,204.04,204.03,16.35223642]
[1755924656777,45.14,204.04,204.02,0.03]
[1755924657364,45.14,204.04,204.03,16.35223642]
[1755924657587,45.82,204.04,204.02,0.03]
[1755924657789,13.59559401,204.03,204.02,0.03]
[1755924658181,59.41559401,204.03,204.02,0.03]
[1755924659312,45.14,204.03,204.02,16.38223642]
[1755924659480,58.73559401,204.03,204.02,16.38223642]
[1755924659678,59.41559401,204.03,204.02,0.03]
[1755924660116,59.41559401,204.03,204.02,16.38223642]
[1755924660332,13.59559401,204.02,204.0,0.03]
[1755924660531,14.27559401,204.02,204.0,0.03]
[1755924660706,14.55991715,204.01,204.0,0.03]
[1755924661032,0.28432314,203.96,203.95,0.03]
[1755924661200,58.73559401,203.96,203.95,0.03]
[1755924661400,59.41559401,203.96,203.95,0.03]
[1755924661825,59.69991715,203.96,203.95,0.03]
[1755924662824,13.59559401,204.0,203.95,16.38223642]
[1755924663005,13.59559401,204.0,203.97,16.35223642]
[1755924663212,13.59559401,203.98,203.97,16.35223642]
[1755924663398,14.27559401,203.98,203.96,16.35223642]
[1755924664001,14.27559401,203.98,203.95,0.03]
[1755924664229,14.27559401,203.98,203.95,16.38223642]
[1755924664530,14.27559401,203.98,203.96,16.35223642]
[1755924664531,13.59559401,203.98,203.96,16.35223642]
[1755924664708,14.27559401,203.98,203.95,0.03]
[1755924664914,13.59559401,203.98,203.95,0.03]
[1755924665123,13.59559401,203.96,203.95,0.03]
[1755924665308,75.37215357,203.96,203.95,0.03]
[1755924665508,76.05215357,203.96,203.95,0.03]
[1755924665827,59.69991715,203.96,203.95,0.03]
[1755924666021,76.05215357,203.96,203.95,0.03]
[1755924666834,0.28432314,203.95,203.93,0.2]
[1755924667024,76.05215357,203.96,203.93,0.2]
[1755924667025,30.91215357,203.94,203.93,0.2]
[1755924667407,76.05215357,203.94,203.93,0.2]
[1755924668202,85.69991715,203.94,203.93,0.2]
[1755924668515,76.05215357,203.94,203.93,0.2]
[1755924669033,14.41775558,203.94,203.93,0.2]
[1755924669211,29.94783043,203.94,203.93,0.2]
[1755924669528,75.909992,203.94,203.93,0.2]
[1755924669908,13.73775558,203.93,203.92,0.03]
[1755924670118,30.91215357,203.93,203.92,0.03]
[1755924670930,13.59559401,203.96,203.92,0.03]
[1755924671126,13.59559401,203.94,203.92,0.03]
[1755924671327,13.73775558,203.93,203.92,0.03]
[1755924671629,30.91215357,203.93,203.92,0.03]
[1755924671828,14.55991715,203.93,203.92,0.03]
[1755924672029,59.69991715,203.93,203.92,0.03]
[1755924672213,58.87775558,203.93,203.92,0.03]
[1755924672418,13.59559401,203.93,203.92,0.03]
[1755924672630,75.909992,203.93,203.92,0.03]
[1755924673118,76.05215357,203.93,203.92,0.03]
[1755924673932,30.23215357,203.91,203.9,0.03]
[1755924674230,13.87991715,203.91,203.9,0.03]
[1755924674429,75.37215357,203.91,203.9,0.03]
[1755924674842,13.59559401,203.91,203.9,0.03]
[1755924675011,58.73559401,203.91,203.9,0.03]
[1755924676456,59.01991715,203.91,203.9,0.03]
[1755924676950,58.73559401,203.91,203.9,16.38223642]
[1755924677626,60.515,204.0,203.9,16.38223642]
[1755924677627,13.59559401,203.99,203.93,26.0]
[1755924677939,45.14,203.98,203.97,16.35223642]
[1755924678335,58.73559401,203.98,203.97,16.35223642]
[1755924679083,13.59559401,203.97,203.9,0.03]
[1755924679350,13.59559401,203.97,203.94,16.35223642]
[1755924679524,60.79932314,204.0,203.96,16.35223642]
[1755924679725,59.01991715,203.99,203.96,16.35223642]
[1755924679925,59.01991715,203.99,203.95,16.35223642]
[1755924680347,59.01991715,203.99,203.94,16.35223642]
[1755924681028,59.01991715,203.99,203.95,16.35223642]
[1755924681433,13.59559401,203.99,203.98,16.35223642]
[1755924681748,58.73559401,203.99,203.98,16.35223642]
[1755924682117,13.59559401,203.99,203.98,16.35223642]
[1755924682528,45.14,203.99,203.98,16.90223642]
[1755924682941,45.14,203.99,203.98,16.35223642]
[1755924683141,58.73559401,203.99,203.98,16.35223642]
[1755924683949,45.14,203.99,203.98,16.35223642]
[1755924684161,58.73559401,203.99,203.96,0.55]
[1755924684369,45.14,203.99,203.98,42.35223642]
[1755924685245,60.575,204.0,203.98,16.90223642]
[1755924685450,60.575,204.0,203.99,16.90223642]
[1755924686364,0.06,204.02,204.01,26.0]
[1755924686541,45.12,204.04,204.01,42.90223642]
[1755924686744,0.06,204.05,204.03,16.35223642]
[1755924686951,0.06,204.05,204.04,16.35223642]
[1755924687348,0.06,204.05,204.01,0.55]
[1755924687558,0.06,204.05,204.04,16.35223642]
[1755924687761,45.18,204.05,203.98,0.55]
[1755924687975,45.18,204.05,204.04,16.35223642]
[1755924688650,58.77559401,204.05,204.04,16.35223642]
[1755924688874,13.59559401,204.04,204.02,16.35223642]
[1755924689754,14.28559401,204.04,204.02,16.35223642]
[1755924689961,13.59559401,204.04,204.02,16.35223642]
[1755924691565,0.69,204.03,204.01,16.35223642]
[1755924691770,0.69,204.03,203.9,10.03]
[1755924691771,45.1,204.02,204.0,16.35223642]
[1755924691960,45.1,204.02,204.01,42.35223642]
[1755924692160,45.1,204.02,204.01,26.0]
[1755924692360,45.1,204.02,204.01,42.35223642]
[1755924692555,45.1,204.02,204.01,26.0]
[1755924692985,45.1,204.02,204.0,16.35223642]
[1755924693358,45.1,204.02,203.92,26.0]
[1755924693559,13.59559401,204.01,204.0,16.35223642]
[1755924694274,13.59559401,204.01,203.98,26.0]
[1755924694275,13.59559401,204.01,203.99,16.35223642]
[1755924694682,58.69559401,204.02,204.01,26.0]
[1755924695358,0.06,204.05,204.01,16.35223642]
[1755924695548,0.06,204.05,204.0,26.0]
[1755924695549,45.08,204.04,204.0,26.0]
[1755924695753,58.67559401,204.04,204.03,16.35223642]
[1755924695958,58.67559401,204.04,203.98,26.0]
[1755924696155,58.67559401,204.04,204.03,16.35223642]
[1755924696568,0.06,204.05,204.03,16.35223642]
[1755924696774,0.06,204.05,204.04,42.35223642]
[1755924696984,45.14,204.05,204.04,42.35223642]
[1755924697152,0.06,204.05,204.04,16.35223642]
[1755924697353,0.06,204.05,204.04,42.35223642]
[1755924698284,45.08,204.06,204.04,42.35223642]
[1755924698488,0.06,204.09,204.08,26.0]
[1755924698672,0.06,204.09,204.08,42.35223642]
[1755924699958,0.06,204.09,204.08,16.35223642]
[1755924700164,45.12,204.09,204.08,16.35223642]
[1755924701091,0.06,204.09,204.08,16.35223642]
[1755924701292,36.01,204.22,204.11,26.0]
[1755924701640,49.60559401,204.22,204.21,16.35223642]
[1755924701762,81.05,204.22,204.21,16.35223642]
[1755924701961,0.79,204.26,204.21,16.35223642]
[1755924702161,0.75,204.25,204.24,16.35223642]
[1755924702357,0.06,204.25,204.24,42.35223642]
[1755924702889,0.75,204.25,204.24,42.35223642]
[1755924703058,0.06,204.25,204.24,42.35223642]
[1755924703256,13.59559401,204.24,204.15,26.0]
[1755924703461,13.59559401,204.24,204.22,16.35223642]
[1755924703691,14.28559401,204.23,204.22,16.35223642]
[1755924703875,0.69,204.23,204.19,26.0]
[1755924704189,0.69,204.23,204.2,16.35223642]
[1755924704692,0.69,204.22,204.2,16.35223642]
[1755924704988,13.59559401,204.2,204.06,10.0]
[1755924705161,13.59559401,204.2,204.17,16.35223642]
[1755924705487,45.02,204.19,204.18,16.35223642]
[1755924705694,59.30559401,204.19,204.18,16.35223642]
[1755924706492,58.61559401,204.19,204.09,26.0]
[1755924706663,58.61559401,204.19,204.18,16.35223642]
[1755924707688,45.02,204.19,204.16,26.0]
[1755924707986,45.02,204.19,204.18,16.35223642]
[1755924708969,58.61559401,204.19,204.05,0.49007596]
[1755924709278,45.71,204.19,204.16,16.35223642]
[1755924709593,14.28559401,204.18,204.14,16.35223642]
[1755924709785,13.59559401,204.16,204.1,16.35223642]
[1755924709984,13.59559401,204.14,204.09,16.35223642]
[1755924710276,17.04223642,204.15,203.99,4.91102896]
[1755924710277,13.59559401,204.12,203.99,4.91102896]
[1755924710588,13.59559401,204.12,204.0,3.23741373]
[1755924710795,13.59559401,204.1,203.95,0.03]
[1755924710990,0.28432314,204.09,204.04,16.35223642]
[1755924711292,13.59559401,204.07,204.05,16.35223642]
[1755924711594,13.59559401,204.05,204.01,0.03]
[1755924711887,13.59559401,204.05,204.04,16.35223642]
[1755924712190,14.28559401,204.05,204.04,16.35223642]
[1755924712401,14.28559401,204.05,204.04,23.19414247]
[1755924712935,14.28559401,204.11,204.04,26.0]
[1755924713080,13.59559401,204.09,204.06,23.19414247]
[1755924713390,0.69,204.08,204.06,23.19414247]
[1755924713583,13.59559401,204.07,204.02,23.19414247]
[1755924713781,13.59559401,204.05,204.02,49.19414247]
[1755924713988,45.67,204.04,204.01,23.22414247]
[1755924714194,13.59559401,204.11,204.01,0.03]
[1755924714395,13.59559401,204.11,204.1,23.19414247]
[1755924714596,58.57559401,204.11,204.09,23.19414247]
[1755924714913,59.26559401,204.1,204.09,23.19414247]
[1755924715420,44.98,204.1,204.09,49.19414247]
[1755924715570,58.57559401,204.1,204.09,49.19414247]
[1755924715989,59.26559401,204.1,204.09,26.0]
[1755924716717,13.59559401,204.09,204.07,23.19414247]
[1755924717019,13.59559401,204.07,204.05,49.19414247]
[1755924717328,44.98,204.06,204.01,0.03]
[1755924717706,45.7,204.06,204.01,0.03]
[1755924718507,14.31559401,204.05,204.01,0.03]
[1755924719025,13.59559401,204.05,204.01,0.03]
[1755924719326,0.72,204.04,204.01,0.03]
[1755924719822,0.72,204.04,204.03,23.19414247]
[1755924720236,0.72,204.04,204.01,0.03]
[1755924720390,1.00432314,204.04,204.01,0.03]
[1755924720594,0.72,204.04,204.03,23.19414247]
[1755924720791,44.96,204.04,204.01,0.03]
[1755924721096,59.27559401,204.04,204.03,23.19414247]
[1755924721307,59.27559401,204.04,204.02,26.0]
[1755924721496,58.55559401,204.04,204.03,23.19414247]
[1755924722598,13.59559401,204.03,204.01,0.03]
[1755924722809,14.31559401,204.03,204.01,0.03]
[1755924723013,0.72,204.02,204.01,0.03]
[1755924725431,14.31559401,204.02,204.01,0.03]
[1755924727628,0.28432314,204.0,203.98,0.03]
[1755924727805,13.59559401,203.99,203.98,0.03]
[1755924728000,59.23559401,203.99,203.98,0.03]
[1755924729122,59.51991715,203.99,203.98,0.03]
[1755924729298,82.71405962,203.99,203.98,0.03]
[1755924729702,59.51991715,203.99,203.98,0.03]
[1755924731841,82.71405962,203.99,203.98,0.03]
[1755924732433,74.48273524,203.99,203.98,0.03]
[1755924733111,59.01991715,203.99,203.98,0.03]
[1755924734249,58.99991715,203.99,203.98,0.03]
[1755924734810,13.81559401,203.99,203.98,0.03]
[1755924735017,13.09559401,203.99,203.98,15.49281809]
[1755924735210,57.99559401,203.99,203.98,15.49281809]
[1755924735947,57.99559401,203.99,203.98,0.03]
[1755924736241,57.99559401,203.99,203.98,15.49281809]
[1755924736425,44.9,203.99,203.98,0.06]
[1755924736742,44.9,203.99,203.98,15.52281809]
[1755924736913,44.9,203.99,203.98,0.03]
[1755924737109,44.9,203.99,203.98,15.49281809]
[1755924737309,13.59559401,204.02,203.98,15.49281809]
[1755924737515,13.59559401,204.02,204.01,15.46281809]
[1755924737816,58.47559401,204.02,203.98,0.03]
[1755924738017,58.47559401,204.02,204.01,15.46281809]
[1755924738211,59.19559401,204.02,203.98,15.49281809]
[1755924738412,13.59559401,204.0,203.98,0.03]
[1755924738647,58.47559401,203.99,203.98,0.03]
[1755924738833,59.19559401,203.99,203.98,0.03]
[1755924740665,58.47559401,203.99,203.98,0.03]
[1755924740850,58.47559401,203.99,203.98,15.49281809]
[1755924741342,59.19559401,203.99,203.98,0.03]
[1755924741533,35.32,204.03,203.98,41.49281809]
[1755924741729,14.31559401,204.02,204.0,15.46281809]
[1755924741936,58.45559401,204.01,204.0,26.0]
[1755924742462,58.45559401,204.01,203.98,0.03]
[1755924742463,13.59559401,204.0,203.98,0.03]
[1755924742764,44.86,203.99,203.98,0.03]
[1755924742980,58.45559401,203.99,203.98,0.03]
[1755924743171,35.32,204.03,203.98,15.49281809]
[1755924743357,13.59559401,204.02,203.98,0.06]
[1755924743667,0.06,204.04,204.01,15.46281809]
[1755924743838,0.06,204.04,203.98,0.03]
[1755924744037,44.84,204.03,203.98,0.03]
[1755924744360,44.84,204.03,203.99,0.03]
[1755924744952,0.06,204.04,204.02,41.46281809]
[1755924745145,0.06,204.04,204.03,15.46281809]
[1755924745347,0.06,204.09,204.06,26.0]
[1755924745547,0.06,204.09,204.06,0.03]
[1755924745862,0.06,204.09,204.08,15.46281809]
[1755924746837,0.06,204.09,204.03,0.03]
[1755924747042,0.06,204.09,204.08,15.46281809]
[1755924747251,0.06,204.09,204.03,26.03]
[1755924747569,0.06,204.09,204.08,15.46281809]
[1755924749444,0.06,204.09,204.04,0.03]
[1755924749445,0.06,204.09,204.05,0.03]
[1755924749641,0.06,204.09,204.08,15.46281809]
[1755924750150,0.06,204.09,204.08,15.49281809]
[1755924751341,0.06,204.14,204.11,26.0]
[1755924751556,0.06,204.14,204.11,41.46281809]
[1755924751762,0.06,204.14,204.13,15.46281809]
[1755924752145,0.06,204.14,204.12,0.03]
[1755924752469,0.06,204.14,204.13,15.46281809]
[1755924754868,0.72,204.14,204.13,15.46281809]
[1755924755577,13.59559401,204.13,204.0,20.43010337]
[1755924755784,13.59559401,204.11,204.1,15.46281809]
[1755924755961,44.72,204.12,204.05,0.03]
[1755924756286,44.72,204.12,204.11,15.46281809]
[1755924756581,45.38,204.12,204.11,15.46281809]
[1755924756756,58.97559401,204.12,204.11,15.46281809]
[1755924756955,0.06,204.14,204.11,15.46281809]
[1755924757153,58.97559401,204.13,204.04,0.03]
[1755924757359,14.25559401,204.12,204.01,3.9339169]
[1755924757551,14.25559401,204.12,204.09,15.46281809]
[1755924757754,13.59559401,204.1,204.09,15.46281809]
[1755924757957,0.66,204.1,204.09,15.46281809]
[1755924758273,13.59559401,204.12,204.09,15.46281809]
[1755924758475,0.06,204.14,204.13,26.0]
[1755924758656,59.01559401,204.14,204.13,26.0]
[1755924759066,13.59559401,204.13,204.11,15.46281809]
[1755924759383,0.66,204.12,204.11,15.46281809]
[1755924759957,0.66,204.12,204.03,26.03]
[1755924760271,0.66,204.12,204.11,15.46281809]